bitfinex/quotes_BTCUSD_20220207
["timestamp","ask_amount","ask_price","bid_price","bid_amount"]
[1644268023066,0.41731856,44215.0,44212.0,0.00050834]
[1644268023668,0.41731856,44215.0,44210.0,0.01929386]
[1644268023868,0.22895975,44211.0,44210.0,0.01929386]
[1644268024421,0.27895975,44211.0,44210.0,0.01929386]
[1644268024816,0.27895975,44211.0,44210.0,0.03929386]
[1644268025219,0.03182356,44211.0,44210.0,0.02]
[1644268025518,0.03182356,44214.0,44210.0,0.02]
[1644268026321,0.03182356,44214.0,44212.0,0.01817644]
[1644268026522,0.19262299,44217.0,44212.0,0.01817644]
[1644268026922,0.00067821,44217.0,44212.0,0.01817644]
[1644268027119,0.05067821,44217.0,44212.0,0.01817644]
[1644268027319,0.03182356,44214.0,44210.0,0.02]
[1644268027519,0.0954,44220.0,44212.0,0.00071149]
[1644268027520,0.03182356,44216.0,44212.0,0.00071149]
[1644268027722,0.00067825,44217.0,44212.0,0.00071149]
[1644268027919,0.03182356,44213.0,44212.0,0.00071149]
[1644268028557,0.03182356,44213.0,44211.0,0.01817644]
[1644268028857,0.27473688,44213.0,44211.0,0.01817644]
[1644268030260,0.24291332,44213.0,44211.0,0.01817644]
[1644268030462,0.00028914,44214.0,44212.0,0.322235]
[1644268030660,0.00028914,44215.0,44212.0,0.322235]
[1644268030861,0.00028914,44216.0,44214.0,0.01817644]
[1644268031061,0.00028914,44222.0,44215.0,0.322235]
[1644268031260,0.00028914,44222.0,44214.0,0.01817644]
[1644268031261,0.00067822,44217.0,44216.0,0.322235]
[1644268031462,0.00067822,44217.0,44216.0,0.34041144]
[1644268032113,0.24398836,44224.0,44214.0,0.36905556]
[1644268032114,0.2121648,44224.0,44214.0,0.36905556]
[1644268032309,0.00067825,44219.0,44218.0,0.01817644]
[1644268032509,0.00067825,44219.0,44214.0,0.36905556]
[1644268032911,0.00067825,44219.0,44215.0,0.01803652]
[1644268033110,0.00067825,44219.0,44217.0,0.25043091]
[1644268033313,0.2121648,44224.0,44217.0,0.25043091]
[1644268033512,0.190095,44223.0,44220.0,0.01817644]
[1644268033814,0.00028968,44224.0,44217.0,0.25043091]
[1644268034112,0.00028968,44224.0,44218.0,0.322235]
[1644268034313,0.00028968,44224.0,44217.0,0.26860735]
[1644268034314,0.00271246,44228.0,44217.0,0.26860735]
[1644268034615,0.03182356,44223.0,44217.0,0.26860735]
[1644268034915,0.03248711,44223.0,44217.0,0.01874929]
[1644268035111,0.00066355,44223.0,44217.0,0.01874929]
[1644268035515,0.03182356,44222.0,44217.0,0.01874929]
[1644268035762,0.03211324,44222.0,44217.0,0.01874929]
[1644268035962,0.03248712,44222.0,44217.0,0.01874929]
[1644268036361,0.03248712,44222.0,44220.0,0.01817644]
[1644268036560,0.03248712,44222.0,44217.0,0.01874929]
[1644268036761,0.0327768,44222.0,44217.0,0.01874929]
[1644268036960,0.03182356,44222.0,44217.0,0.01874929]
[1644268037165,0.03248713,44222.0,44217.0,0.01874929]
[1644268037360,0.03277681,44222.0,44217.0,0.01874929]
[1644268037559,0.03248713,44222.0,44217.0,0.01874929]
[1644268037761,0.00066357,44222.0,44215.0,0.0220774]
[1644268037964,0.02480421,44218.0,44215.0,0.0220774]
[1644268038362,0.00095476,44221.0,44215.0,0.0220774]
[1644268038562,0.00066508,44221.0,44215.0,0.0220774]
[1644268038964,0.2316168,44219.0,44215.0,0.0220774]
[1644268039166,0.2316168,44219.0,44215.0,0.0014196]
[1644268039405,0.00028968,44220.0,44217.0,0.31921911]
[1644268039609,0.00028054,44219.0,44217.0,0.31921911]
[1644268039809,0.00028054,44219.0,44215.0,0.0014196]
[1644268040007,0.00028054,44219.0,44216.0,0.34743079]
[1644268040405,0.00028968,44220.0,44216.0,0.34743079]
[1644268040607,0.02480421,44219.0,44215.0,0.0014196]
[1644268040807,0.00028968,44220.0,44218.0,0.02539579]
[1644268041007,0.02489389,44226.0,44219.0,0.02539579]
[1644268041207,0.00028968,44222.0,44215.0,0.02063783]
[1644268041405,0.02460421,44226.0,44217.0,0.02539579]
[1644268041607,0.00028968,44225.0,44220.0,0.02539579]
[1644268041812,0.21504315,44223.0,44220.0,0.02539579]
[1644268042206,0.26504315,44223.0,44220.0,0.02539579]
[1644268042806,0.05,44223.0,44220.0,0.02539579]
[1644268043008,0.00028968,44226.0,44220.0,0.02539579]
[1644268043009,0.00028968,44226.0,44221.0,0.322235]
[1644268043269,0.00028968,44229.0,44223.0,0.02539579]
[1644268043467,0.00028968,44230.0,44223.0,0.02539579]
[1644268043670,0.02489389,44231.0,44223.0,0.02539579]
[1644268043866,0.23115756,44229.0,44223.0,0.02539579]
[1644268044275,0.02460421,44228.0,44223.0,0.02539579]
[1644268044670,0.00028968,44228.0,44223.0,0.02539579]
[1644268044874,0.02460421,44225.0,44220.0,0.02539579]
[1644268045178,0.19793274,44227.0,44222.0,0.02189685]
[1644268045472,0.190095,44224.0,44222.0,0.02189685]
[1644268045870,0.045,44224.0,44222.0,0.02189685]
[1644268046070,0.190095,44223.0,44222.0,0.02189685]
[1644268046270,0.190095,44224.0,44222.0,0.02327053]
[1644268047310,0.240095,44224.0,44222.0,0.00137368]
[1644268048515,0.24665103,44221.0,44214.0,0.00063443]
[1644268048711,0.08910555,44215.0,44214.0,0.00063443]
[1644268048909,0.05000421,44215.0,44205.0,0.004604]
[1644268049110,0.21773151,44213.0,44206.0,0.25906338]
[1644268049310,0.00460421,44209.0,44206.0,0.25906338]
[1644268050114,0.00460421,44209.0,44206.0,0.30445917]
[1644268050513,0.00460421,44209.0,44206.0,0.25906338]
[1644268051760,0.00460421,44209.0,44205.0,0.00523748]
[1644268052160,0.00460421,44209.0,44208.0,0.04539579]
[1644268052361,0.00460421,44209.0,44208.0,0.36763079]
[1644268052759,0.00460421,44209.0,44208.0,0.27224831]
[1644268052963,0.00460421,44209.0,44208.0,0.22685252]
[1644268053165,0.00028968,44215.0,44208.0,0.22685252]
[1644268053361,0.00460421,44209.0,44208.0,0.22685252]
[1644268055713,0.00624585,44209.0,44208.0,0.22685252]
[1644268058454,0.00624585,44209.0,44205.0,0.004604]
[1644268058656,0.00624585,44209.0,44206.0,0.0006331]
[1644268059255,0.05164585,44209.0,44206.0,0.0006331]
[1644268059757,0.30037345,44207.0,44205.0,0.004604]
[1644268060058,0.00460421,44206.0,44205.0,0.004604]
[1644268060360,0.58545088,44206.0,44205.0,0.004604]
[1644268060760,0.68545088,44206.0,44205.0,0.004604]
[1644268061358,0.68545088,44206.0,44196.0,0.01915706]
[1644268061359,0.056575,44203.0,44196.0,0.01915706]
[1644268061560,1.4331271,44196.0,44188.0,0.24202201]
[1644268061763,0.00460421,44189.0,44184.0,0.24202201]
[1644268062030,0.00460421,44185.0,44181.0,0.24202201]
[1644268062227,0.00460421,44182.0,44177.0,0.2874178]
[1644268062427,0.05,44189.0,44181.0,1.24539579]
[1644268062428,0.0454,44187.0,44181.0,1.24539579]
[1644268062732,0.0454,44187.0,44184.0,0.04539579]
[1644268063125,0.05000421,44187.0,44182.0,0.24202201]
[1644268063330,0.0454,44187.0,44183.0,0.27175243]
[1644268063529,0.0454,44187.0,44186.0,0.04539579]
[1644268063726,0.0454,44187.0,44186.0,0.36763079]
[1644268063927,0.0454,44187.0,44186.0,0.322235]
[1644268064127,0.0454,44187.0,44186.0,0.04539579]
[1644268064525,0.0454,44187.0,44186.0,0.36763079]
[1644268064726,0.00460421,44194.0,44191.0,0.34346576]
[1644268065525,0.0586291,44195.0,44191.0,0.34346576]
[1644268065770,0.0586291,44195.0,44192.0,0.26857408]
[1644268065771,0.00205205,44195.0,44192.0,0.26857408]
[1644268065971,0.00205205,44195.0,44191.0,0.34346576]
[1644268066171,0.00205205,44195.0,44194.0,0.04539579]
[1644268066568,0.00205205,44195.0,44191.0,0.85908883]
[1644268066767,0.00205205,44195.0,44194.0,0.04539579]
[1644268066972,0.00205205,44195.0,44194.0,0.64634221]
[1644268067172,0.3998,44209.0,44194.0,0.64634221]
[1644268067173,0.00460421,44210.0,44196.0,0.322235]
[1644268067373,0.00029028,44215.0,44196.0,0.322235]
[1644268067374,0.07008061,44214.0,44207.0,0.04539579]
[1644268067872,0.05,44214.0,44207.0,0.04539579]
[1644268068268,0.05,44214.0,44208.0,0.22779617]
[1644268068868,0.05,44214.0,44208.0,0.00066177]
[1644268069070,0.00460421,44212.0,44208.0,0.00066177]
[1644268069409,0.190095,44213.0,44209.0,0.04539579]
[1644268069611,0.190095,44213.0,44209.0,0.04605755]
[1644268069810,0.190095,44213.0,44202.0,0.05]
[1644268070009,0.05,44214.0,44202.0,0.2674826]
[1644268070409,0.05,44214.0,44203.0,0.322235]
[1644268070808,0.05,44214.0,44203.0,0.322155]
[1644268071012,0.1,44214.0,44203.0,0.322155]
[1644268071209,0.1,44214.0,44203.0,0.34353615]
[1644268071611,0.2062448,44212.0,44203.0,0.34323615]
[1644268071811,0.2562448,44212.0,44203.0,0.34323615]
[1644268072012,0.05,44211.0,44206.0,0.00065313]
[1644268072915,0.05,44214.0,44204.0,0.322151]
[1644268073169,0.00056939,44215.0,44207.0,0.322151]
[1644268073363,0.02141088,44215.0,44207.0,0.322151]
[1644268073567,0.02141088,44215.0,44208.0,0.3]
[1644268073964,0.02141088,44215.0,44209.0,0.35039831]
[1644268074265,6.029e-05,44213.0,44210.0,0.322151]
[1644268074666,6.029e-05,44213.0,44211.0,0.3]
[1644268074866,6.029e-05,44213.0,44212.0,0.322151]
[1644268075073,6.029e-05,44213.0,44212.0,0.772151]
[1644268075266,6.029e-05,44213.0,44212.0,0.817551]
[1644268075466,6.029e-05,44213.0,44212.0,1.01131469]
[1644268075666,0.00017099,44216.0,44214.0,0.113039]
[1644268075867,0.00017099,44216.0,44215.0,0.86417301]
[1644268076069,0.00017099,44216.0,44215.0,0.622151]
[1644268076265,0.00029035,44221.0,44216.0,1.60564212]
[1644268076466,0.02188134,44222.0,44220.0,0.34528895]
[1644268076767,0.00029035,44221.0,44220.0,0.66743995]
[1644268077006,0.02188134,44222.0,44221.0,0.322151]
[1644268077210,0.02188134,44222.0,44221.0,0.6477544]
[1644268077408,0.01927569,44231.0,44221.0,0.6477544]
[1644268077610,0.00029035,44229.0,44221.0,0.3256034]
[1644268077811,0.01927569,44231.0,44222.0,0.322151]
[1644268078009,0.05,44229.0,44221.0,0.3821314]
[1644268078213,0.06927569,44231.0,44221.0,0.106528]
[1644268078410,0.06927569,44231.0,44222.0,0.056524]
[1644268078411,0.00029035,44229.0,44222.0,0.056524]
[1644268078612,0.06898534,44231.0,44225.0,0.23498026]
[1644268078613,0.06927569,44231.0,44225.0,0.23498026]
[1644268078811,0.00029035,44230.0,44226.0,0.322151]
[1644268079009,0.06927569,44231.0,44226.0,0.322151]
[1644268079210,0.00096844,44230.0,44225.0,0.23498026]
[1644268079409,0.00067809,44230.0,44226.0,0.322151]
[1644268079713,0.00096844,44230.0,44226.0,0.106522]
[1644268079911,0.00067809,44230.0,44226.0,0.106522]
[1644268080110,0.00029035,44231.0,44226.0,0.056522]
[1644268080311,0.00359603,44232.0,44225.0,0.056524]
[1644268080510,0.00067809,44230.0,44226.0,0.322151]
[1644268080955,0.00096844,44230.0,44226.0,0.322151]
[1644268081165,0.00067809,44230.0,44226.0,0.322151]
[1644268081459,0.00029035,44231.0,44226.0,0.322151]
[1644268081656,0.00067809,44230.0,44226.0,0.322151]
[1644268081855,0.00067809,44230.0,44226.0,0.5246114]
[1644268082459,0.05,44230.0,44226.0,0.322151]
[1644268082657,0.00029035,44231.0,44223.0,0.322151]
[1644268082868,0.00067809,44230.0,44223.0,0.322151]
[1644268083655,0.00029035,44231.0,44223.0,0.322151]
[1644268083863,0.05,44229.0,44223.0,0.322151]
[1644268084056,0.05067809,44229.0,44223.0,0.322151]
[1644268084909,0.05,44229.0,44223.0,0.322151]
[1644268085109,0.00067809,44228.0,44223.0,0.322151]
[1644268085310,0.00096844,44228.0,44223.0,0.322151]
[1644268085909,0.00067809,44228.0,44223.0,0.322151]
[1644268086109,0.00029035,44231.0,44223.0,0.322151]
[1644268086309,0.00067809,44228.0,44223.0,0.322151]
[1644268086711,0.00067809,44228.0,44225.0,0.056521]
[1644268087010,0.00067809,44228.0,44226.0,0.322151]
[1644268087412,0.05,44228.0,44219.0,0.01825565]
[1644268087716,0.05,44220.0,44219.0,0.01825565]
[1644268087920,0.10654239,44226.0,44219.0,0.03989618]
[1644268088176,0.05029035,44225.0,44219.0,0.02164053]
[1644268088364,0.26547561,44225.0,44219.0,0.02164053]
[1644268088564,0.26547561,44225.0,44219.0,0.23149932]
[1644268088565,0.26576596,44225.0,44219.0,0.23149932]
[1644268088763,0.00029035,44225.0,44219.0,0.23149932]
[1644268088964,0.00067809,44224.0,44219.0,0.23149932]
[1644268089463,0.00067809,44224.0,44219.0,0.20985879]
[1644268089464,0.00096844,44224.0,44219.0,0.20985879]
[1644268089663,0.05029035,44225.0,44219.0,0.20985879]
[1644268089863,0.05,44225.0,44219.0,0.20985879]
[1644268090064,0.00067809,44224.0,44219.0,0.20985879]
[1644268090265,0.00096844,44224.0,44219.0,0.20985879]
[1644268090465,0.00067809,44224.0,44219.0,0.20985879]
[1644268090666,0.00096844,44224.0,44219.0,0.25985879]
[1644268090868,0.00067809,44224.0,44220.0,0.322151]
[1644268091067,0.00029035,44229.0,44221.0,0.113034]
[1644268091266,0.00096844,44224.0,44222.0,0.322151]
[1644268091466,0.00067809,44224.0,44222.0,0.322151]
[1644268092111,0.00029035,44229.0,44222.0,0.322151]
[1644268092308,0.00029035,44231.0,44222.0,0.322151]
[1644268092508,0.00067809,44225.0,44222.0,0.322151]
[1644268092709,0.00067809,44225.0,44224.0,0.27754335]
[1644268092909,0.00067809,44225.0,44224.0,0.59969435]
[1644268093310,0.00029035,44227.0,44224.0,0.59969435]
[1644268093614,0.00029035,44227.0,44225.0,0.64795547]
[1644268093615,0.00067809,44227.0,44225.0,0.64795547]
[1644268093812,0.00067809,44227.0,44226.0,0.62249424]
[1644268094012,0.00029035,44228.0,44227.0,1.672151]
[1644268094215,0.00029035,44230.0,44227.0,1.722151]
[1644268094411,0.00029035,44231.0,44228.0,0.61071602]
[1644268094610,0.00359603,44232.0,44231.0,0.30673955]
[1644268094810,0.00330568,44232.0,44231.0,0.30673955]
[1644268095661,0.00330568,44232.0,44230.0,0.58562933]
[1644268096656,0.00129298,44236.0,44231.0,1.35]
[1644268096864,0.00129298,44236.0,44232.0,0.667551]
[1644268097057,0.004,44240.0,44233.0,0.05]
[1644268097255,0.004,44240.0,44234.0,0.367551]
[1644268097457,0.04037575,44241.0,44236.0,0.322151]
[1644268097656,0.04037575,44241.0,44237.0,0.84906999]
[1644268097858,0.04037575,44241.0,44238.0,0.322151]
[1644268098058,0.04037575,44241.0,44239.0,0.0454]
[1644268098257,0.03037575,44241.0,44240.0,0.322151]
[1644268098460,0.03037575,44241.0,44240.0,0.367551]
[1644268098858,0.00317404,44243.0,44240.0,0.367551]
[1644268099164,0.001,44253.0,44242.0,1.728643]
[1644268099436,0.00896658,44251.0,44245.0,0.457751]
[1644268099623,0.01860845,44250.0,44246.0,0.481]
[1644268099821,0.01860845,44250.0,44247.0,0.322151]
[1644268099822,0.01889885,44250.0,44247.0,0.322151]
[1644268100023,0.01889885,44250.0,44248.0,0.56409369]
[1644268100223,0.004,44258.0,44248.0,0.56409369]
[1644268100224,0.003,44264.0,44250.0,1.5]
[1644268100427,0.0008856,44260.0,44259.0,0.2]
[1644268100627,0.001,44277.0,44261.0,1.35]
[1644268100824,0.001,44277.0,44262.0,0.83314349]
[1644268101026,0.001,44277.0,44262.0,0.367551]
[1644268101225,0.001,44277.0,44269.0,0.21121882]
[1644268101424,0.05,44276.0,44270.0,0.367551]
[1644268101625,0.001,44277.0,44271.0,0.0454]
[1644268101934,0.05,44272.0,44265.0,0.112925]
[1644268102126,0.05,44266.0,44264.0,0.5454]
[1644268102325,0.05,44266.0,44264.0,0.5]
[1644268102724,0.36128432,44270.0,44264.0,0.5]
[1644268102924,0.41128432,44270.0,44264.0,0.5]
[1644268103164,0.29144577,44271.0,44264.0,0.5]
[1644268103362,0.00066795,44269.0,44264.0,0.5]
[1644268103560,0.00066795,44269.0,44262.0,0.01831867]
[1644268103763,0.22498912,44269.0,44262.0,0.01831867]
[1644268104162,0.22432117,44269.0,44262.0,0.01831867]
[1644268104363,0.27432117,44269.0,44262.0,0.01831867]
[1644268104666,0.00066795,44268.0,44262.0,0.01831867]
[1644268105161,0.26188449,44267.0,44262.0,0.01690911]
[1644268105363,0.37354865,44264.0,44262.0,0.01690911]
[1644268105563,0.37354865,44264.0,44258.0,0.02118792]
[1644268105762,0.62636948,44264.0,44258.0,0.02118792]
[1644268106167,1.35,44260.0,44251.0,0.3]
[1644268106367,0.190488,44258.0,44247.0,0.18092743]
[1644268106564,0.235888,44258.0,44248.0,0.5]
[1644268106764,0.235888,44258.0,44239.0,0.05]
[1644268106765,0.285888,44258.0,44239.0,0.05]
[1644268107007,0.49163262,44257.0,44246.0,0.00051343]
[1644268107408,0.49163262,44257.0,44250.0,0.24524978]
[1644268108008,0.30114462,44257.0,44250.0,0.24524978]
[1644268108213,0.00066683,44256.0,44250.0,0.24524978]
[1644268108410,0.00066683,44256.0,44255.0,0.05]
[1644268108612,0.00066683,44256.0,44255.0,0.322151]
[1644268109109,0.00966864,44257.0,44255.0,0.31649745]
[1644268109309,0.00987097,44258.0,44255.0,0.32186]
[1644268109609,0.00987097,44258.0,44256.0,0.32186]
[1644268109610,0.00020233,44258.0,44256.0,0.32186]
[1644268110309,0.00966864,44260.0,44256.0,0.32186]
[1644268110508,0.00066683,44259.0,44256.0,0.32186]
[1644268110771,0.00066683,44259.0,44257.0,0.59967113]
[1644268110972,0.00533547,44260.0,44258.0,0.95]
[1644268111269,0.00533547,44260.0,44258.0,0.32186]
[1644268111471,0.00533547,44261.0,44259.0,0.18096812]
[1644268111670,0.00533547,44262.0,44255.0,0.02177796]
[1644268111871,0.00533547,44264.0,44256.0,0.32186]
[1644268112171,0.00533547,44265.0,44263.0,0.05]
[1644268112376,0.00035181,44266.0,44257.0,0.32255335]
[1644268112377,0.00539576,44266.0,44259.0,0.32186]
[1644268112574,0.00029152,44265.0,44259.0,0.32186]
[1644268112770,0.00568728,44266.0,44259.0,0.32186]
[1644268112973,0.00049157,44265.0,44259.0,0.32186]
[1644268113171,0.00020005,44265.0,44264.0,0.21786928]
[1644268113373,0.00049157,44265.0,44264.0,0.21786928]
[1644268113574,0.00020005,44265.0,44264.0,0.21786928]
[1644268113776,0.00020005,44265.0,44264.0,0.58972928]
[1644268113979,0.3947,44278.0,44264.0,0.58972928]
[1644268113980,0.00029152,44271.0,44268.0,0.01151375]
[1644268114176,0.00019973,44267.0,44265.0,0.32186]
[1644268114411,0.00019973,44267.0,44260.0,0.05]
[1644268114610,0.00019973,44267.0,44261.0,0.60546426]
[1644268114917,0.00019973,44267.0,44259.0,0.01938263]
[1644268115110,0.00029152,44267.0,44259.0,0.01938263]
[1644268115310,0.00019973,44266.0,44261.0,0.27161137]
[1644268115711,0.00019973,44266.0,44261.0,0.02164315]
[1644268115911,0.00049125,44266.0,44261.0,0.02164315]
[1644268116110,0.00019973,44266.0,44261.0,0.02164315]
[1644268116310,0.00029152,44266.0,44261.0,0.02164315]
[1644268116609,0.00019973,44266.0,44261.0,0.02164315]
[1644268116810,0.00049125,44266.0,44261.0,0.02164315]
[1644268117010,0.00019973,44266.0,44261.0,0.02164315]
[1644268117210,0.00049125,44266.0,44261.0,0.02164315]
[1644268117412,0.00029152,44267.0,44263.0,0.05]
[1644268117618,0.00029152,44266.0,44261.0,0.04042592]
[1644268117811,0.00066516,44266.0,44261.0,0.04042592]
[1644268118471,0.06900243,44266.0,44261.0,0.04042592]
[1644268118670,0.06833727,44266.0,44261.0,0.04042592]
[1644268119072,0.31212096,44266.0,44261.0,0.04042592]
[1644268119271,0.2243744,44262.0,44261.0,0.04042592]
[1644268119472,0.2243744,44262.0,44259.0,0.0185039]
[1644268120284,0.00095668,44263.0,44260.0,0.32186]
[1644268120474,0.00066516,44263.0,44260.0,0.32186]
[1644268121073,0.01029396,44264.0,44261.0,0.85]
[1644268121274,0.01000244,44265.0,44262.0,0.32186]
[1644268121474,0.00066516,44264.0,44260.0,0.32186]
[1644268121909,0.00095668,44264.0,44260.0,0.32186]
[1644268122310,0.00029152,44264.0,44260.0,0.32186]
[1644268122511,0.01029396,44265.0,44259.0,0.01964505]
[1644268122711,0.00029152,44264.0,44260.0,0.32186]
[1644268122915,0.00029152,44264.0,44259.0,0.01964505]
[1644268122916,0.01029396,44265.0,44259.0,0.01964505]
[1644268123213,0.00029152,44264.0,44259.0,0.01964505]
[1644268123411,0.01029396,44265.0,44263.0,0.05]
[1644268123613,0.00029152,44264.0,44263.0,0.05]
[1644268123812,0.01000244,44265.0,44263.0,0.37186]
[1644268124017,0.01000244,44265.0,44264.0,0.05]
[1644268124313,0.01000244,44266.0,44265.0,0.32186]
[1644268124512,0.01029396,44266.0,44260.0,0.02139505]
[1644268124813,0.01000244,44266.0,44260.0,0.02139505]
[1644268125012,0.01000244,44266.0,44261.0,0.32186]
[1644268125859,0.01000244,44266.0,44260.0,0.09268987]
[1644268126260,0.23223336,44264.0,44260.0,0.09268987]
[1644268126461,0.23223336,44264.0,44261.0,0.32186]
[1644268126660,0.23252488,44264.0,44261.0,0.32186]
[1644268126860,0.23223336,44264.0,44260.0,0.09268987]
[1644268127060,0.23252488,44264.0,44260.0,0.09268987]
[1644268127263,0.23252488,44264.0,44260.0,0.04268987]
[1644268127464,0.196187,44263.0,44260.0,0.04268987]
[1644268127660,0.237787,44263.0,44259.0,0.01901467]
[1644268127864,0.23807852,44263.0,44259.0,0.01901467]
[1644268128264,0.35070431,44261.0,44259.0,0.01901467]
[1644268128462,0.196187,44260.0,44259.0,0.01901467]
[1644268128763,0.237787,44260.0,44259.0,0.01901467]
[1644268129608,0.237787,44260.0,44255.0,0.02092671]
[1644268129808,0.00868648,44258.0,44255.0,0.02092671]
[1644268130011,0.4604745,44257.0,44255.0,0.02092671]
[1644268131608,0.4604745,44257.0,44254.0,0.0007166]
[1644268131808,0.51697633,44257.0,44254.0,0.0007166]
[1644268132009,0.196187,44256.0,44251.0,0.02125626]
[1644268132209,0.196187,44256.0,44253.0,0.0007166]
[1644268132410,0.19609368,44256.0,44253.0,0.0007166]
[1644268132711,0.34747966,44254.0,44253.0,0.0007166]
[1644268132911,0.54327966,44254.0,44253.0,0.0007166]
[1644268133160,0.00868648,44255.0,44251.0,0.02125626]
[1644268133357,0.026211,44254.0,44251.0,0.02125626]
[1644268133756,0.026211,44254.0,44249.0,0.02119377]
[1644268133961,0.02650252,44254.0,44249.0,0.02119377]
[1644268135261,0.05650785,44252.0,44249.0,0.02119377]
[1644268135461,0.22239525,44250.0,44249.0,0.02119377]
[1644268135758,0.22239525,44250.0,44247.0,0.0190343]
[1644268135759,0.026211,44249.0,44247.0,0.0190343]
[1644268135958,0.0416,44248.0,44247.0,0.0190343]
[1644268136164,0.23108173,44250.0,44247.0,0.0190343]
[1644268136357,0.0416,44249.0,44247.0,0.0190343]
[1644268137617,0.0416,44249.0,44246.0,0.00071612]
[1644268138017,0.0416,44249.0,44244.0,0.02180364]
[1644268138218,0.07740117,44248.0,44245.0,0.00071613]
[1644268138420,0.0416,44249.0,44245.0,0.00071613]
[1644268138421,0.0416,44247.0,44245.0,0.00071613]
[1644268138620,0.0416,44246.0,44245.0,0.00071613]
[1644268139218,0.0416,44246.0,44244.0,0.02180364]
[1644268139618,0.0416,44246.0,44243.0,0.00071615]
[1644268140420,0.0416,44246.0,44241.0,0.02127131]
[1644268140660,0.0416,44246.0,44242.0,0.00071616]
[1644268141369,0.0416,44246.0,44243.0,0.19365326]
[1644268141857,0.0416,44246.0,44242.0,0.00071617]
[1644268142157,0.0416,44246.0,44240.0,0.18243259]
[1644268142359,0.0416,44246.0,44241.0,0.05]
[1644268142559,0.00868648,44247.0,44244.0,0.05]
[1644268142759,0.00868648,44247.0,44245.0,0.321915]
[1644268142959,0.00868648,44247.0,44244.0,0.05]
[1644268143158,0.00868648,44247.0,44243.0,0.321915]
[1644268143359,0.00868648,44247.0,44244.0,0.24206657]
[1644268143967,0.00868648,44247.0,44245.0,0.321915]
[1644268144610,0.00868648,44247.0,44246.0,0.05]
[1644268144810,0.00099777,44255.0,44246.0,0.371915]
[1644268145008,0.00099777,44255.0,44253.0,0.05]
[1644268145210,0.00029152,44258.0,44253.0,0.05]
[1644268145410,0.00266077,44259.0,44256.0,0.05]
[1644268146412,0.00029152,44261.0,44256.0,0.05]
[1644268146719,0.00066529,44260.0,44259.0,0.05]
[1644268146910,0.00066529,44260.0,44256.0,0.05]
[1644268147510,0.00029152,44263.0,44256.0,0.05]
[1644268147712,0.4165,44264.0,44256.0,0.05]
[1644268147713,0.41679152,44264.0,44256.0,0.05]
[1644268147911,0.00066529,44260.0,44256.0,0.05]
[1644268148167,0.00066529,44260.0,44256.0,0.06831471]
[1644268148366,0.00066529,44260.0,44256.0,0.05]
[1644268148765,0.00029152,44261.0,44256.0,0.05]
[1644268148966,0.00066529,44260.0,44256.0,0.05]
[1644268149568,0.00066529,44260.0,44256.0,0.07167073]
[1644268149766,0.00095681,44260.0,44256.0,0.07167073]
[1644268149966,0.00029152,44261.0,44256.0,0.07167073]
[1644268150168,0.00066529,44260.0,44256.0,0.07167073]
[1644268150469,0.26495773,44258.0,44256.0,0.02167073]
[1644268151466,0.5791571,44258.0,44256.0,0.02167073]
[1644268151671,0.5791571,44258.0,44252.0,0.01976289]
[1644268151910,0.57944862,44258.0,44252.0,0.01976289]
[1644268152507,0.5791571,44258.0,44252.0,0.01976289]
[1644268152708,0.00066529,44257.0,44252.0,0.01976289]
[1644268152909,0.00066529,44257.0,44252.0,0.01476289]
[1644268153509,0.00066529,44257.0,44252.0,0.03436906]
[1644268153708,0.5791571,44258.0,44252.0,0.03436906]
[1644268153908,0.00066529,44257.0,44252.0,0.03436906]
[1644268154909,0.00029152,44259.0,44252.0,0.03436906]
[1644268155109,0.00066529,44257.0,44252.0,0.03436906]
[1644268155674,0.00066529,44257.0,44252.0,0.0561594]
[1644268155675,0.14596861,44255.0,44252.0,0.0561594]
[1644268155869,0.14596861,44255.0,44252.0,0.02179034]
[1644268156270,0.30860256,44254.0,44252.0,0.02179034]
[1644268156669,0.26956228,44253.0,44252.0,0.02179034]
[1644268157768,0.29459903,44249.0,44248.0,0.01905358]
[1644268157974,0.33619903,44249.0,44248.0,0.01905358]
[1644268160213,0.38619903,44249.0,44244.0,0.01924486]
[1644268160414,0.08687901,44248.0,44244.0,0.01924486]
[1644268160814,0.08687901,44248.0,44244.0,0.01908686]
[1644268161210,0.22871599,44247.0,44244.0,0.01908686]
[1644268161411,0.056521,44246.0,44244.0,0.01908686]
[1644268161611,0.11304166,44246.0,44241.0,0.01888303]
[1644268161813,0.36332069,44242.0,44241.0,0.01888303]
[1644268162514,0.0416,44243.0,44241.0,0.01888303]
[1644268162912,0.04052115,44243.0,44241.0,0.01888303]
[1644268163166,0.0416,44244.0,44241.0,0.01888303]
[1644268163661,0.41007896,44244.0,44240.0,0.00067665]
[1644268164460,0.41007896,44244.0,44238.0,0.0216775]
[1644268164663,0.05653,44243.0,44240.0,0.00067665]
[1644268164866,0.29857801,44242.0,44240.0,0.00067665]
[1644268165163,0.19792963,44241.0,44240.0,0.00067665]
[1644268165360,0.23952963,44241.0,44240.0,0.00067665]
[1644268165560,0.28952963,44241.0,44238.0,0.0216775]
[1644268165761,0.34992251,44240.0,44238.0,0.00066793]
[1644268165961,0.0416,44239.0,44238.0,0.00066793]
[1644268166909,0.0416,44239.0,44236.0,0.019257]
[1644268166910,0.0981276,44239.0,44236.0,0.019257]
[1644268167111,0.31053651,44237.0,44236.0,0.01992495]
[1644268167311,0.35213651,44237.0,44236.0,0.01992495]
[1644268167711,0.0416,44237.0,44236.0,0.00066795]
[1644268168111,0.0416,44237.0,44234.0,0.01907584]
[1644268168312,0.098129,44237.0,44234.0,0.0195442]
[1644268168512,0.148129,44237.0,44234.0,0.0195442]
[1644268168720,0.05653423,44233.0,44223.0,0.3]
[1644268168915,0.05653423,44233.0,44214.0,0.1401566]
[1644268168916,0.22979027,44228.0,44219.0,0.3]
[1644268169113,0.05,44230.0,44221.0,0.05]
[1644268169114,0.0416,44227.0,44221.0,0.05]
[1644268169313,0.0416,44226.0,44221.0,0.05]
[1644268169913,0.10743296,44226.0,44219.0,0.35]
[1644268170119,0.0416,44226.0,44219.0,0.3]
[1644268170513,0.0416,44226.0,44217.0,0.24580634]
[1644268170766,0.056543,44224.0,44217.0,0.24580634]
[1644268170964,0.098143,44224.0,44217.0,0.24580634]
[1644268171164,0.17684197,44224.0,44217.0,0.24580634]
[1644268171561,0.1546836,44224.0,44217.0,0.24580634]
[1644268171763,0.1546836,44224.0,44214.0,0.24362418]
[1644268171965,0.0981406,44224.0,44220.0,0.05]
[1644268172166,0.05,44227.0,44221.0,0.6]
[1644268172364,0.0416,44226.0,44221.0,0.6]